fUST/lending_fUST_20251010
["ID","MTS","AMOUNT","RATE_DAILY","PERIOD"]
[390448049,1760049059860,-500.0,0.00016986,2]
[390448051,1760049059870,-500.0,0.00016986,2]
[390448053,1760049059880,-500.0,0.00016986,2]
[390448055,1760049059889,-500.0,0.00016986,2]
[390448057,1760049059898,-500.0,0.00016986,2]
[390448059,1760049059908,-500.0,0.00016986,2]
[390448061,1760049059917,-500.0,0.00016986,2]
[390448063,1760049059926,-500.0,0.00016986,2]
[390448065,1760049059936,-2604.72,0.00016986,2]
[390448067,1760049059945,-500.0,0.00016986,2]
[390448069,1760049059954,-500.0,0.00016986,2]
[390448071,1760049059963,-500.0,0.00016986,2]
[390448073,1760049059972,-500.0,0.00016986,2]
[390448075,1760049059982,-500.0,0.00016986,2]
[390448077,1760049059991,-500.0,0.00016986,2]
[390448080,1760049060000,-500.0,0.00016986,2]
[390448081,1760049060009,-500.0,0.00016986,2]
[390448083,1760049060018,-500.0,0.00016986,2]
[390448086,1760049060027,-500.0,0.00016986,2]
[390448088,1760049060037,-500.0,0.00016986,2]
[390448090,1760049060046,-809.27,0.00016986,2]
[390448091,1760049060055,-500.0,0.00016986,2]
[390448093,1760049060066,-544.20193872,0.00016986,2]
[390448096,1760049060076,-500.0,0.00016986,2]
[390448097,1760049060085,-500.0,0.00016986,2]
[390448099,1760049060094,-500.0,0.00016986,2]
[390448101,1760049060103,-500.0,0.00016986,2]
[390448103,1760049060112,-500.0,0.00016986,2]
[390448105,1760049060121,-500.0,0.00016986,2]
[390448107,1760049060130,-1900.39,0.00016986,2]
[390448109,1760049060140,-500.0,0.00016986,2]
[390448111,1760049060149,-205.77,0.00016986,2]
[390448113,1760049060158,-507.98,0.00016986,2]
[390448115,1760049060167,-500.0,0.00016986,2]
[390448117,1760049060176,-500.0,0.00016986,2]
[390448119,1760049060184,-763.14,0.00016986,2]
[390448121,1760049060193,-500.0,0.00016986,2]
[390448123,1760049060200,-500.0,0.00016986,2]
[390448125,1760049060209,-500.0,0.00016986,2]
[390448127,1760049060218,-500.0,0.00016986,2]
[390448129,1760049060227,-500.0,0.00016986,2]
[390448131,1760049060238,-500.0,0.00016986,2]
[390448133,1760049060247,-500.0,0.00016986,2]
[390448135,1760049060256,-500.0,0.00016986,2]
[390448137,1760049060265,-500.0,0.00016986,2]
[390448139,1760049060275,-500.0,0.00016986,2]
[390448141,1760049060284,-3893.18,0.00016986,2]
[390448143,1760049060293,-877.37,0.00016986,2]
[390448145,1760049060302,-500.0,0.00016986,2]
[390448147,1760049060311,-174.78,0.00016986,2]
[390448149,1760049060321,-500.0,0.00016986,2]
[390448151,1760049060331,-500.0,0.00016986,2]
[390448153,1760049060342,-500.0,0.00016986,2]
[390448155,1760049060351,-322.9,0.00016986,2]
[390448157,1760049060361,-2274.8,0.00016986,2]
[390448159,1760049060370,-500.0,0.00016986,2]
[390448161,1760049060381,-500.0,0.00016986,2]
[390448163,1760049060394,-500.63894328,0.00016986,2]
[390448165,1760049060403,-6618.17,0.00016986,2]
[390448167,1760049060412,-500.0,0.00016986,2]
[390448169,1760049060421,-891.25,0.00016986,2]
[390448171,1760049060430,-500.0,0.00016986,2]
[390448173,1760049060440,-500.0,0.00016986,2]
[390448175,1760049060449,-500.0,0.00016986,2]
[390448177,1760049060457,-500.0,0.00016986,2]
[390448179,1760049060466,-5972.17,0.00016986,2]
[390448181,1760049060475,-500.0,0.00016986,2]
[390448183,1760049060485,-500.0,0.00016986,2]
[390448185,1760049060495,-500.0,0.00016986,2]
[390448187,1760049060504,-692.05,0.00016986,2]
[390448189,1760049060514,-1853.47,0.00016986,2]
[390448191,1760049060523,-500.0,0.00016986,2]
[390448193,1760049060532,-3112.08,0.00016986,2]
[390448195,1760049060541,-500.0,0.00016986,2]
[390448197,1760049060551,-500.0,0.00016986,2]
[390448199,1760049060561,-500.0,0.00016986,2]
[390448201,1760049060571,-500.0,0.00016986,2]
[390448203,1760049060581,-2025.74,0.00016986,2]
[390448205,1760049060591,-500.0,0.00016986,2]
[390448207,1760049060600,-571.53,0.00016986,2]
[390448209,1760049060609,-544.46,0.00016986,2]
[390448211,1760049060619,-424.07,0.00016986,2]
[390448213,1760049060628,-500.0,0.00016986,2]
[390448215,1760049060637,-592.83,0.00016986,2]
[390448217,1760049060647,-500.0,0.00016986,2]
[390448219,1760049060656,-500.0,0.00016986,2]
[390448221,1760049060665,-500.0,0.00016986,2]
[390448223,1760049060675,-500.0,0.00016986,2]
[390448225,1760049060684,-500.0,0.00016986,2]
[390448227,1760049060693,-500.0,0.00016986,2]
[390448229,1760049060703,-500.0,0.00016986,2]
[390448231,1760049060713,-500.0,0.00016986,2]
[390448233,1760049060723,-590.95,0.00016986,2]
[390448235,1760049060734,-500.0,0.00016986,2]
[390448237,1760049060745,-500.0,0.00016986,2]
[390448239,1760049060756,-500.0,0.00016986,2]
[390448241,1760049060767,-500.0,0.00016986,2]
[390448243,1760049060778,-500.0,0.00016986,2]
[390448245,1760049060788,-500.0,0.00016986,2]
[390448247,1760049060799,-500.0,0.00016986,2]
[390448249,1760049060809,-1076.65,0.00016986,2]
[390448251,1760049060824,-500.0,0.00016986,2]
[390448253,1760049060834,-564.15,0.00016986,2]
[390448255,1760049060844,-500.0,0.00016986,2]
[390448257,1760049060853,-500.0,0.00016986,2]
[390448259,1760049060862,-921.56,0.00016986,2]
[390448274,1760049061000,-500.0,0.00016986,2]
[390448276,1760049061012,-500.0,0.00016986,2]
[390448278,1760049061022,-500.0,0.00016986,2]
[390448280,1760049061031,-500.0,0.00016986,2]
[390448282,1760049061041,-500.0,0.00016986,2]
[390448284,1760049061051,-500.0,0.00016986,2]
[390448286,1760049061060,-1190.01,0.00016986,2]
[390448288,1760049061072,-500.0,0.00016986,2]
[390448290,1760049061083,-500.0,0.00016986,2]
[390448292,1760049061092,-500.0,0.00016986,2]
[390448294,1760049061101,-1119.17,0.00016986,2]
[390448296,1760049061110,-528.39,0.00016986,2]
[390448298,1760049061120,-500.0,0.00016986,2]
[390448300,1760049061129,-500.0,0.00016986,2]
[390448302,1760049061138,-703.63,0.00016986,2]
[390448304,1760049061147,-500.0,0.00016986,2]
[390448306,1760049061156,-569.9,0.00016986,2]
[390448307,1760049061166,-374.95,0.00016986,2]
[390448309,1760049061175,-500.0,0.00016986,2]
[390448312,1760049061185,-724.68,0.00016986,2]
[390448313,1760049061194,-5637.91,0.00016986,2]
[390448315,1760049061204,-500.0,0.00016986,2]
[390448317,1760049061213,-500.0,0.00016986,2]
[390448319,1760049061222,-500.0,0.00016986,2]
[390448321,1760049061232,-500.0,0.00016986,2]
[390448323,1760049061241,-623.74,0.00016986,2]
[390448325,1760049061251,-500.0,0.00016986,2]
[390448327,1760049061261,-985.52,0.00016986,2]
[390448329,1760049061269,-500.0,0.00016986,2]
[390448331,1760049061279,-500.0,0.00016986,2]
[390448333,1760049061288,-500.0,0.00016986,2]
[390448335,1760049061297,-500.0,0.00016986,2]
[390448337,1760049061306,-1168.48,0.00016986,2]
[390448339,1760049061317,-500.0,0.00016986,2]
[390448341,1760049061327,-656.57,0.00016986,2]
[390448343,1760049061336,-3121.93,0.00016986,2]
[390448345,1760049061344,-682.02,0.00016986,2]
[390448347,1760049061354,-500.0,0.00016986,2]
[390448348,1760049061363,-494.23,0.00016986,2]
[390448350,1760049061372,-1762.16,0.00016986,2]
[390448352,1760049061382,-500.0,0.00016986,2]
[390448354,1760049061392,-500.0,0.00016986,2]
[390448356,1760049061401,-500.0,0.00016986,2]
[390448358,1760049061410,-500.0,0.00016986,2]
[390448360,1760049061419,-500.0,0.00016986,2]
[390448362,1760049061428,-500.0,0.00016986,2]
[390448363,1760049061437,-500.0,0.00016986,2]
[390448364,1760049061446,-500.0,0.00016986,2]
[390448365,1760049061455,-500.0,0.00016986,2]
[390448366,1760049061464,-500.0,0.00016986,2]
[390448367,1760049061473,-500.0,0.00016986,2]
[390448368,1760049061481,-2002.17,0.00016986,2]
[390448369,1760049061491,-889.1,0.00016986,2]
[390448370,1760049061500,-500.0,0.00016986,2]
[390448371,1760049061509,-500.0,0.00016986,2]
[390448372,1760049061518,-500.0,0.00016986,2]
[390448373,1760049061527,-878.5,0.00016986,2]
[390448374,1760049061536,-770.72,0.00016986,2]
[390448375,1760049061545,-500.0,0.00016986,2]
[390448376,1760049061554,-500.0,0.00016986,2]
[390448377,1760049061563,-538.79,0.00016986,2]
[390448378,1760049061574,-500.0,0.00016986,2]
[390448379,1760049061583,-712.23,0.00016986,2]
[390448380,1760049061592,-500.0,0.00016986,2]
[390448381,1760049061602,-500.0,0.00016986,2]
[390448382,1760049061610,-500.0,0.00016986,2]
[390448383,1760049061619,-500.0,0.00016986,2]
[390448384,1760049061629,-183.14,0.00016986,2]
[390448385,1760049061638,-500.0,0.00016986,2]
[390448386,1760049061647,-500.0,0.00016986,2]
[390448387,1760049061656,-500.0,0.00016986,2]
[390448388,1760049061665,-500.0,0.00016986,2]
[390448389,1760049061674,-1001.89,0.00016986,2]
[390448390,1760049061683,-500.0,0.00016986,2]
[390448391,1760049061692,-500.0,0.00016986,2]
[390448392,1760049061701,-500.0,0.00016986,2]
[390448393,1760049061710,-500.0,0.00016986,2]
[390448395,1760049061720,-384.88020097,0.00016986,2]
[390448397,1760049061730,-467.81015037,0.00016986,2]
[390448399,1760049061739,-500.0,0.00016986,2]
[390448400,1760049061748,-5497.24,0.00016986,2]
[390448402,1760049061758,-500.0,0.00016986,2]
[390448404,1760049061768,-500.0,0.00016986,2]
[390448406,1760049061777,-799.82,0.00016986,2]
[390448408,1760049061790,-500.0,0.00016986,2]
[390448410,1760049061799,-500.0,0.00016986,2]
[390448412,1760049061809,-500.0,0.00016986,2]
[390448414,1760049061819,-919.61,0.00016986,2]
[390448416,1760049061828,-500.0,0.00016986,2]
[390448418,1760049061839,-500.0,0.00016986,2]
[390448420,1760049061848,-500.0,0.00016986,2]
[390448422,1760049061859,-500.0,0.00016986,2]
[390448424,1760049061869,-695.88,0.00016986,2]
[390448426,1760049061878,-2375.08,0.00016986,2]
[390448428,1760049061887,-500.0,0.00016986,2]
[390448430,1760049061896,-2411.66,0.00016986,2]
[390448432,1760049061905,-651.79,0.00016986,2]
[390448434,1760049061914,-701.5,0.00016986,2]
[390448436,1760049061923,-212.352,0.00016996,2]
[390448438,1760049061932,-187.545,0.00016996,2]
[390448440,1760049061942,-151.0,0.00017,2]
[390448442,1760049061951,-4276.39070458,0.00017,2]
[390448444,1760049061959,-4195.0,0.00017011,2]
[390448446,1760049061969,-630.0,0.0001706,2]
[390448448,1760049061979,-2159.0,0.0001706,2]
[390448450,1760049061987,-411.0,0.0001706,2]
[390448452,1760049061996,-413.063,0.0001706,2]
[390448454,1760049062005,-618.4425733,0.0001709,2]
[390448455,1760049062014,-1026.352848,0.00017105,2]
[390448457,1760049062023,-3922.0,0.00017139,2]
[390448459,1760049062033,-150.0,0.00017152,2]
[390448461,1760049062042,-150.0,0.00017152,2]
[390448463,1760049062051,-500.0,0.0001716,2]
[390448465,1760049062061,-6273.52066032,0.000172,2]
[390448467,1760049062071,-161.3441542,0.00017248,2]
[390448469,1760049062080,-500.0,0.0001726,2]
[390448471,1760049062089,-252.34,0.0001726,2]
[390448473,1760049062099,-500.0,0.0001726,2]
[390448475,1760049062108,-500.0,0.0001726,2]
[390448477,1760049062117,-500.0,0.0001726,2]
[390448479,1760049062126,-500.0,0.0001726,2]
[390448481,1760049062135,-530.14,0.0001726,2]
[390448483,1760049062144,-500.0,0.0001726,2]
[390448485,1760049062154,-500.0,0.0001726,2]
[390448487,1760049062163,-500.0,0.0001726,2]
[390448489,1760049062172,-500.0,0.0001726,2]
[390448491,1760049062181,-500.0,0.0001726,2]
[390448493,1760049062191,-500.0,0.0001726,2]
[390448495,1760049062200,-500.0,0.0001726,2]
[390448497,1760049062209,-500.0,0.0001726,2]
[390448499,1760049062218,-500.0,0.0001726,2]
[390448501,1760049062227,-500.0,0.0001726,2]
[390448503,1760049062236,-500.0,0.0001726,2]
[390448505,1760049062245,-500.0,0.0001726,2]
[390448507,1760049062254,-460.44919195,0.0001726,2]
[390448509,1760049062263,-500.0,0.0001726,2]
[390448511,1760049062272,-500.0,0.0001726,2]
[390448512,1760049062281,-500.0,0.0001726,2]
[390448514,1760049062291,-500.0,0.0001726,2]
[390448516,1760049062300,-500.0,0.0001726,2]
[390448519,1760049062310,-500.0,0.0001726,2]
[390448521,1760049062320,-500.0,0.0001726,2]
[390448523,1760049062330,-500.0,0.0001726,2]
[390448525,1760049062339,-500.0,0.0001726,2]
[390448527,1760049062348,-500.0,0.0001726,2]
[390448529,1760049062357,-325.74,0.0001726,2]
[390448530,1760049062366,-500.0,0.0001726,2]
[390448532,1760049062376,-500.0,0.0001726,2]
[390448534,1760049062385,-500.0,0.0001726,2]
[390448536,1760049062394,-500.0,0.0001726,2]
[390448538,1760049062403,-500.0,0.0001726,2]
[390448540,1760049062412,-500.0,0.0001726,2]
[390448542,1760049062422,-500.0,0.0001726,2]
[390448544,1760049062431,-500.0,0.0001726,2]
[390448546,1760049062440,-322.57,0.0001726,2]
[390448548,1760049062449,-500.0,0.0001726,2]
[390448551,1760049062459,-500.0,0.0001726,2]
[390448552,1760049062468,-235.02454287,0.0001726,2]
[390448554,1760049062478,-500.0,0.0001726,2]
[390448555,1760049062487,-500.0,0.0001726,2]
[390448557,1760049062496,-500.0,0.0001726,2]
[390448559,1760049062506,-500.0,0.0001726,2]
[390448561,1760049062515,-500.0,0.0001726,2]
[390448563,1760049062524,-1092.55,0.0001726,2]
[390448565,1760049062533,-500.0,0.0001726,2]
[390448567,1760049062542,-500.0,0.0001726,2]
[390448569,1760049062552,-500.0,0.0001726,2]
[390448571,1760049062561,-500.0,0.0001726,2]
[390448573,1760049062571,-500.0,0.0001726,2]
[390448575,1760049062580,-500.0,0.0001726,2]
[390448577,1760049062590,-500.0,0.0001726,2]
[390448578,1760049062599,-500.0,0.0001726,2]
[390448580,1760049062608,-500.0,0.0001726,2]
[390448582,1760049062617,-592.04307517,0.0001726,2]
[390448584,1760049062626,-500.0,0.0001726,2]
[390448586,1760049062635,-500.0,0.0001726,2]
[390448588,1760049062644,-500.0,0.0001726,2]
[390448590,1760049062653,-500.0,0.0001726,2]
[390448592,1760049062662,-500.0,0.0001726,2]
[390448594,1760049062672,-169.94,0.0001726,2]
[390448596,1760049062681,-500.0,0.0001726,2]
[390448598,1760049062690,-500.0,0.0001726,2]
[390448600,1760049062699,-500.0,0.0001726,2]
[390448602,1760049062709,-500.0,0.0001726,2]
[390448604,1760049062719,-500.0,0.0001726,2]
[390448606,1760049062728,-500.0,0.0001726,2]
[390448608,1760049062738,-328.53104489,0.0001726,2]
[390448610,1760049062747,-500.0,0.0001726,2]
[390448612,1760049062759,-500.0,0.0001726,2]
[390448614,1760049062769,-500.0,0.0001726,2]
[390448616,1760049062778,-482.32329518,0.0001726,2]
[390448618,1760049062787,-500.0,0.0001726,2]
[390448620,1760049062795,-500.0,0.0001726,2]
[390448622,1760049062805,-500.0,0.0001726,2]
[390448624,1760049062816,-500.0,0.0001726,2]
[390448626,1760049062826,-500.0,0.0001726,2]
[390448628,1760049062835,-605.34,0.0001726,2]
[390448630,1760049062844,-500.0,0.0001726,2]
[390448632,1760049062853,-1874.45,0.0001726,2]
[390448634,1760049062862,-500.0,0.0001726,2]
[390448635,1760049062871,-500.0,0.0001726,2]
[390448637,1760049062881,-1686.2,0.0001726,2]
[390448639,1760049062890,-500.0,0.0001726,2]
[390448641,1760049062899,-500.0,0.0001726,2]
[390448643,1760049062908,-500.0,0.0001726,2]
[390448645,1760049062917,-153.24,0.0001726,2]
[390448647,1760049062926,-500.0,0.0001726,2]
[390448649,1760049062935,-500.0,0.0001726,2]
[390448651,1760049062945,-500.0,0.0001726,2]
[390448653,1760049062954,-497.04,0.0001726,2]
[390448655,1760049062963,-500.0,0.0001726,2]
[390448657,1760049062973,-500.0,0.0001726,2]
[390448659,1760049062982,-968.16,0.0001726,2]
[390448661,1760049062991,-539.62,0.0001726,2]
[390448663,1760049063000,-500.0,0.0001726,2]
[390448665,1760049063010,-756.4,0.0001726,2]
[390448667,1760049063020,-500.0,0.0001726,2]
[390448669,1760049063029,-500.0,0.0001726,2]
[390448671,1760049063038,-500.0,0.0001726,2]
[390448673,1760049063047,-545.74,0.0001726,2]
[390448675,1760049063057,-500.0,0.0001726,2]
[390448677,1760049063067,-500.0,0.0001726,2]
[390448679,1760049063077,-500.0,0.0001726,2]
[390448681,1760049063087,-500.0,0.0001726,2]
[390448682,1760049063096,-500.0,0.0001726,2]
[390448684,1760049063106,-500.0,0.0001726,2]
[390448686,1760049063116,-500.0,0.0001726,2]
[390448688,1760049063125,-500.0,0.0001726,2]
[390448690,1760049063134,-569.05,0.0001726,2]
[390448692,1760049063144,-500.0,0.0001726,2]
[390448694,1760049063153,-500.0,0.0001726,2]
[390448696,1760049063163,-500.0,0.0001726,2]
[390448698,1760049063172,-500.0,0.0001726,2]
[390448700,1760049063181,-573.54,0.0001726,2]
[390448702,1760049063191,-500.0,0.0001726,2]
[390448704,1760049063200,-500.0,0.0001726,2]
[390448706,1760049063209,-500.0,0.0001726,2]
[390448708,1760049063219,-500.0,0.0001726,2]
[390448710,1760049063228,-500.0,0.0001726,2]
[390448712,1760049063237,-500.0,0.0001726,2]
[390448714,1760049063246,-500.0,0.0001726,2]
[390448716,1760049063255,-500.0,0.0001726,2]
[390448718,1760049063264,-500.0,0.0001726,2]
[390448720,1760049063274,-693.22,0.0001726,2]
[390448721,1760049063283,-500.0,0.0001726,2]
[390448723,1760049063293,-500.0,0.0001726,2]
[390448725,1760049063303,-500.0,0.0001726,2]
[390448727,1760049063313,-500.0,0.0001726,2]
[390448729,1760049063324,-500.0,0.0001726,2]
[390448731,1760049063333,-529.24,0.0001726,2]
[390448733,1760049063343,-500.0,0.0001726,2]
[390448735,1760049063352,-267.94,0.0001726,2]
[390448737,1760049063361,-500.0,0.0001726,2]
[390448739,1760049063371,-500.0,0.0001726,2]
[390448741,1760049063380,-500.0,0.0001726,2]
[390448743,1760049063390,-500.0,0.0001726,2]
[390448745,1760049063399,-2604.72,0.0001726,2]
[390448747,1760049063408,-500.0,0.0001726,2]
[390448749,1760049063417,-507.49,0.0001726,2]
[390448751,1760049063426,-500.0,0.0001726,2]
[390448753,1760049063438,-500.0,0.0001726,2]
[390448755,1760049063447,-500.0,0.0001726,2]
[390448757,1760049063456,-500.0,0.0001726,2]
[390448759,1760049063465,-809.27,0.0001726,2]
[390448761,1760049063474,-500.0,0.0001726,2]
[390448763,1760049063483,-221.55,0.0001726,2]
[390448765,1760049063492,-500.0,0.0001726,2]
[390448767,1760049063502,-598.73,0.0001726,2]
[390448782,1760049063622,-500.0,0.0001726,2]
[390448784,1760049063644,-500.0,0.0001726,2]
[390448786,1760049063653,-500.0,0.0001726,2]
[390448788,1760049063663,-1900.39,0.0001726,2]
[390448790,1760049063672,-500.0,0.0001726,2]
[390448792,1760049063681,-763.14,0.0001726,2]
[390448794,1760049063691,-500.0,0.0001726,2]
[390448796,1760049063700,-500.0,0.0001726,2]
[390448798,1760049063710,-500.0,0.0001726,2]
[390448800,1760049063719,-532.3,0.0001726,2]
[390448802,1760049063728,-500.0,0.0001726,2]
[390448804,1760049063738,-500.0,0.0001726,2]
[390448806,1760049063747,-500.0,0.0001726,2]
[390448808,1760049063758,-500.0,0.0001726,2]
[390448810,1760049063767,-500.0,0.0001726,2]
[390448812,1760049063777,-500.0,0.0001726,2]
[390448814,1760049063791,-3893.18,0.0001726,2]
[390448816,1760049063800,-877.37,0.0001726,2]
[390448818,1760049063810,-500.0,0.0001726,2]
[390448820,1760049063823,-500.0,0.0001726,2]
[390448822,1760049063832,-2274.8,0.0001726,2]
[390448824,1760049063841,-500.0,0.0001726,2]
[390448826,1760049063850,-6618.17,0.0001726,2]
[390448828,1760049063859,-361.68,0.0001726,2]
[390448830,1760049063868,-891.25,0.0001726,2]
[390448832,1760049063877,-223.58,0.0001726,2]
[390448834,1760049063887,-500.0,0.0001726,2]
[390448836,1760049063897,-209.1,0.0001726,2]
[390448838,1760049063906,-5972.17,0.0001726,2]
[390448840,1760049063916,-500.0,0.0001726,2]
[390448842,1760049063926,-228.48,0.0001726,2]
[390448844,1760049063936,-692.05,0.0001726,2]
[390448846,1760049063946,-1853.47,0.0001726,2]
[390448848,1760049063955,-238.18,0.0001726,2]
[390448850,1760049063964,-3112.08,0.0001726,2]
[390448852,1760049063973,-301.87798143,0.0001726,2]
[390448854,1760049063982,-500.0,0.0001726,2]
[390448856,1760049063992,-500.0,0.0001726,2]
[390448858,1760049064002,-500.0,0.0001726,2]
[390448860,1760049064012,-2025.74,0.0001726,2]
[390448862,1760049064022,-500.0,0.0001726,2]
[390448864,1760049064031,-571.53,0.0001726,2]
[390448866,1760049064042,-544.46,0.0001726,2]
[390448868,1760049064051,-493.08,0.0001726,2]
[390448870,1760049064061,-592.83,0.0001726,2]
[390448872,1760049064071,-523.36,0.0001726,2]
[390448874,1760049064080,-500.0,0.0001726,2]
[390448876,1760049064090,-500.0,0.0001726,2]
[390448878,1760049064100,-500.0,0.0001726,2]
[390448880,1760049064109,-500.0,0.0001726,2]
[390448882,1760049064118,-500.0,0.0001726,2]
[390448884,1760049064128,-500.0,0.0001726,2]
[390448886,1760049064137,-590.95,0.0001726,2]
[390448888,1760049064146,-500.0,0.0001726,2]
[390448890,1760049064155,-500.0,0.0001726,2]
[390448892,1760049064165,-500.0,0.0001726,2]
[390448894,1760049064174,-500.0,0.0001726,2]
[390448896,1760049064182,-500.0,0.0001726,2]
[390448898,1760049064191,-500.0,0.0001726,2]
[390448900,1760049064200,-1076.65,0.0001726,2]
[390448902,1760049064209,-500.0,0.0001726,2]
[390448904,1760049064219,-564.15,0.0001726,2]
[390448906,1760049064228,-500.0,0.0001726,2]
[390448908,1760049064236,-921.56,0.0001726,2]
[390448910,1760049064245,-500.0,0.0001726,2]
[390448912,1760049064254,-500.0,0.0001726,2]
[390448914,1760049064264,-500.0,0.0001726,2]
[390448916,1760049064274,-1190.01,0.0001726,2]
[390448918,1760049064284,-357.97,0.0001726,2]
[390448920,1760049064293,-500.0,0.0001726,2]
[390448922,1760049064302,-1119.17,0.0001726,2]
[390448924,1760049064311,-528.39,0.0001726,2]
[390448926,1760049064321,-500.0,0.0001726,2]
[390448928,1760049064330,-703.63,0.0001726,2]
[390448930,1760049064339,-535.47,0.0001726,2]
[390448932,1760049064348,-569.9,0.0001726,2]
[390448934,1760049064357,-500.0,0.0001726,2]
[390448936,1760049064366,-724.68,0.0001726,2]
[390448938,1760049064375,-5637.91,0.0001726,2]
[390448940,1760049064384,-500.0,0.0001726,2]
[390448942,1760049064393,-500.0,0.0001726,2]
[390448944,1760049064402,-500.0,0.0001726,2]
[390448946,1760049064411,-623.74,0.0001726,2]
[390448948,1760049064420,-500.0,0.0001726,2]
[390448950,1760049064429,-985.52,0.0001726,2]
[390448952,1760049064438,-500.0,0.0001726,2]
[390448954,1760049064448,-500.0,0.0001726,2]
[390448956,1760049064457,-500.0,0.0001726,2]
[390448958,1760049064467,-1168.48,0.0001726,2]
[390448960,1760049064476,-500.0,0.0001726,2]
[390448962,1760049064485,-656.57,0.0001726,2]
[390448964,1760049064495,-3121.93,0.0001726,2]
[390448965,1760049064506,-223.85,0.0001726,2]
[390448966,1760049064515,-682.02,0.0001726,2]
[390448967,1760049064524,-1762.16,0.0001726,2]
[390448968,1760049064533,-512.02143912,0.0001726,2]
[390448969,1760049064542,-500.0,0.0001726,2]
[390448970,1760049064551,-500.0,0.0001726,2]
[390448971,1760049064561,-500.0,0.0001726,2]
[390448972,1760049064572,-500.0,0.0001726,2]
[390448973,1760049064581,-500.0,0.0001726,2]
[390448974,1760049064590,-187.34,0.0001726,2]
[390448975,1760049064599,-500.0,0.0001726,2]
[390448976,1760049064608,-500.0,0.0001726,2]
[390448977,1760049064616,-2002.17,0.0001726,2]
[390448978,1760049064626,-889.1,0.0001726,2]
[390448979,1760049064635,-500.0,0.0001726,2]
[390448980,1760049064644,-878.5,0.0001726,2]
[390448981,1760049064653,-770.72,0.0001726,2]
[390448982,1760049064663,-500.0,0.0001726,2]
[390448983,1760049064672,-500.0,0.0001726,2]
[390448984,1760049064681,-538.79,0.0001726,2]
[390448985,1760049064690,-712.23,0.0001726,2]
[390448986,1760049064699,-493.41,0.0001726,2]
[390448987,1760049064708,-533.82,0.0001726,2]
[390448988,1760049064718,-500.0,0.0001726,2]
[390448989,1760049064727,-500.0,0.0001726,2]
[390448990,1760049064736,-500.0,0.0001726,2]
[390448991,1760049064745,-500.0,0.0001726,2]
[390448993,1760049064755,-1001.89,0.0001726,2]
[390448995,1760049064764,-500.0,0.0001726,2]
[390448997,1760049064773,-500.0,0.0001726,2]
[390448999,1760049064785,-500.0,0.0001726,2]
[390449001,1760049064795,-246.51201932,0.0001726,2]
[390449003,1760049064803,-5497.24,0.0001726,2]
[390449005,1760049064812,-500.0,0.0001726,2]